Cogmind - Beta 15 @@@ ROGUE MODE // 2025.08.20 @ 18:58:04 Player: MutatedPixel Result: Destroyed by B-75 Beast with Magnetic Acceleration Cannon Performance ------------- Evolutions (4) 2000 Regions Visited (6) 1200 Robots Destroyed (44) 220 Value Destroyed (912) 912 Prototype IDs (9) 180 Alien Tech Used (0) 0 Bonus (213) 213 TOTAL SCORE: 4725 Bonus ------- High Alert Combat Kills 13 Entered Garrisons 200 Cogmind --------- Core Integrity 0/850 Matter 300/300 Energy 99/100 System Corruption 0% Temperature Cool (0) Movement Core (50) Location -6/Garrison Parts ------- > --- POWER (3) -------- (None) > --- PROPULSION (4) --- (None) > --- UTILITY (3) ------ Advanced Weight Redist. System > --- WEAPON (5) ------- (None) > --- INVENTORY (5) ---- Advanced Weight Redist. System Improved Weapon Cycler Field Laser Peak State ------------ > --- POWER ------------ Light Nuclear Core > --- PROPULSION ------- Improved VTOL Module Improved VTOL Module Improved VTOL Module Improved VTOL Module > --- UTILITY ---------- Melee Analysis Suite Transmission Jammer > --- WEAPON ----------- Shock Rifle Shock Rifle Heavy Particle Cannon > --- INVENTORY -------- Improved VTOL Module Recalibrator Lightning Gun [Rating: 36] Favorites ----------- Power Light Ion Engine Engine Light Ion Engine Power Core Light Nuclear Core Propulsion Flight Unit Treads Light Treads Wheel Wheel Flight Unit Flight Unit Utility ECM Suite Device ECM Suite Storage Small Storage Unit Processor Melee Analysis Suite Protection Weapon Shielding Weapon Medium Laser Energy Gun Medium Laser Energy Cannon Heavy Particle Cannon Ballistic Gun Minigun Ballistic Cannon Light Cannon Launcher EMP Blaster Special Weapon Mining Laser Build | -11 -10 -9 -8 -7 -6 -6 ------- Run | Yrd Mat Mat Mat Fac Fac Gar Slots Evolved 8 | . . 2 2 2 2 . Power 2 | . . . 1 . 1 . Propulsion 2 | . . 1 . 1 . . Utility 1 | . . 1 . . . . Weapon 3 | . . . 1 1 1 . Parts Attached 58 | 6 16 9 9 8 9 1 Power 12 | 1 5 1 2 1 2 . Engine 11 | 1 5 1 2 . 2 . Core 1 | . . . . 1 . . Reactor . | . . . . . . . Propulsion 14 | 2 3 2 4 2 1 . Treads 2 | 2 . . . . . . Leg . | . . . . . . . Wheel 1 | . . . 1 . . . Hover . | . . . . . . . Flight 11 | . 3 2 3 2 1 . Utility 12 | 1 3 2 . 3 3 . Device 8 | . 2 2 . 1 3 . Storage 2 | 1 . . . 1 . . Processor 1 | . . . . 1 . . Hackware . | . . . . . . . Protection 1 | . 1 . . . . . Artifact . | . . . . . . . Weapon 20 | 2 5 4 3 2 3 1 Energy Gun 8 | 2 1 . . 2 2 1 Energy Cannon 1 | . . . 1 . . . Ballistic Gun 7 | . 2 2 2 . 1 . Ballistic Cannon 1 | . . 1 . . . . Launcher 2 | . 1 1 . . . . Special Weapon 1 | . 1 . . . . . Impact Weapon . | . . . . . . . Slashing Weapon . | . . . . . . . Piercing Weapon . | . . . . . . . Special Melee Weapon . | . . . . . . . Unidentified Prototypes 1 | . . . 1 . . . Parts Lost 37 | . . 13 6 6 3 9 Power 9 | . . 3 3 1 1 1 Propulsion 11 | . . 5 1 2 . 3 Utility 8 | . . 4 . . 1 3 Weapon 9 | . . 1 2 3 1 2 Highest Loss Streak 5 | . . 4 5 4 2 4 To Critical Strikes 1 | . . . . 1 . . Average Backups 4 | 3 5 3 3 4 4 4 Power 1 | . 1 2 . . . . Propulsion 1 | 1 2 . 1 2 1 . Utility . | . . . . 1 1 2 Weapon 1 | . 1 1 1 . 1 1 Tool/Special . | . . . . . . . Unused Backups 17 | . 4 . 9 . 1 3 Power . | . . . . . . . Propulsion 7 | . 4 . 3 . . . Utility 6 | . . . 3 . 1 2 Weapon 4 | . . . 3 . . 1 Tool/Special . | . . . . . . . Average Slot Usage (%) 66 | . 91 79 24 54 40 23 Engine 8 | . 14 10 4 . 4 . Treads 2 | . 6 . . . . . Flight 19 | . 19 30 9 23 13 6 Device 12 | . 16 17 . 5 13 12 Storage 1 | . 3 . . 2 . . Protection 1 | . 2 . . . . . Energy Gun 7 | . 17 . . 3 5 2 Ballistic Gun 3 | . 2 4 3 7 . . Ballistic Cannon 1 | . . 5 . . . . Launcher 2 | . . 8 3 . . . Special Weapon 2 | . 6 2 . . . . Peak Build Rating 36 | 6 8 12 21 36 30 25 Average Rating 10 | 4 6 10 7 25 23 12 On Entrance 10 | . 6 8 . 20 16 25 Naked Turns 48 | . . 1 47 . . . Heaviest Build 18 | 14 15 12 13 18 13 9 Greatest Support 40 | 40 40 18 15 20 19 14 Greatest Overweight (x) 4 | . 4 1 3 1 . 1 Average Overweight (x) . | . . . . . . . Largest Inventory Capacity 8 | 8 8 5 5 5 5 5 Average Capacity 5 | 6 5 5 5 5 5 5 Most Carried 8 | 6 8 5 5 5 5 5 Average Carried 4 | 3 5 3 3 4 4 4 Final Capacity 8 | 8 5 5 5 5 5 5 Final Carried 6 | 6 5 5 4 3 5 3 Class Distribution -------------------- 50% | Mutant 25% | Sprinter 21% | Scavenger-Mutant Dominant Class ---------------- Mutant | -10/Materials Sprinter | -9/Materials Mutant | -8/Materials Sprinter | -7/Factory Sprinter | -6/Factory Mutant | -6/Garrison Resources | -11 -10 -9 -8 -7 -6 -6 ----------- Run | Yrd Mat Mat Mat Fac Fac Gar Matter Collected 1400 | 254 368 290 112 47 139 190 Remotely . | . . . . . . . Salvage Created 1456 | . 518 395 102 57 267 117 Parts 85 | . 22 26 9 7 20 1 Haulers Intercepted 4 | . 2 1 . . 1 . Recyclers Shooed 3 | . 2 1 . . . . Parts Field Recycled . | . . . . . . . Retrieved Matter . | . . . . . . . Parts Self-Destructed . | . . . . . . . Prevented . | . . . . . . . Kills | -11 -10 -9 -8 -7 -6 -6 ------- Run | Yrd Mat Mat Mat Fac Fac Gar Combat Hostiles Destroyed 24 | . 7 12 3 2 . . Guns 11 | . 7 2 2 . . . Cannons 3 | . . 1 1 1 . . AOE 10 | . . 9 . 1 . . Classes Destroyed 9 | . 6 2 . 1 . . Worker 4 | . 1 . . . 3 . Builder 5 | . . 1 . . 4 . Hauler 4 | . 2 1 . . 1 . Recycler 2 | . 2 . . . . . Watcher 5 | . 1 2 1 . 1 . Swarmer 10 | . 4 3 2 1 . . Grunt 10 | . 3 7 . . . . Sentry 3 | . . 2 1 . . . Programmer 1 | . . . . 1 . . Best Kill Streak 7 | . 5 7 2 1 6 . Combat Bots Only 5 | . 5 4 2 1 . . Max Kills in Single Turn 3 | . 1 3 1 1 1 . Gunslinging . | . . . . . . . Exploded 3 | . . 3 . 1 . . Melee . | . . . . . . . Uniques/NPCs Destroyed . | . . . . . . . Combat | -11 -10 -9 -8 -7 -6 -6 -------- Run | Yrd Mat Mat Mat Fac Fac Gar Hostile Shots Fired 514 | . 78 130 97 77 11 121 Missed 229 | . 30 73 37 38 2 49 Hits 285 | . 48 57 60 39 9 72 Melee 2 | . . . . . . 2 Projectile 283 | . 48 57 60 39 9 70 Critical Strikes 6 | . . 1 . 2 1 2 Damage Taken 4281 | . 462 774 828 585 475 1157 Core 1749 | . 100 233 367 174 158 717 Absorbed by Shields 212 | . . 60 . 28 . 124 Redirected to Shielding 25 | . 25 . . . . . Regen/Repaired (Parts) 31 | . 31 . . . . . Core Remaining (%) 61 | 100 60 41 33 75 . . Volleys Fired 184 | . 74 53 18 9 24 6 Largest 3 | . 2 2 3 1 2 1 Hottest 123 | . 100 123 120 75 88 55 Shots Fired 272 | . 114 77 40 9 26 6 Gun 197 | . 112 28 21 4 26 6 Cannon 42 | . . 21 16 5 . . Launcher 29 | . 1 25 3 . . . Special 4 | . 1 3 . . . . Kinetic 97 | . 24 49 22 . 2 . Thermal 112 | . 89 3 15 5 . . Explosive 11 | . 1 9 1 . . . Electromagnetic 52 | . . 16 2 4 24 6 Robot Hit Streak 9 | . 9 5 4 2 4 6 Robot Miss Streak 5 | . 3 4 5 3 3 . Penetration Max . | . . . . . . . Secondary Targets 3 | . 3 . . . . . Max Gunslinging Chain 1 | . 1 . . . . . Shots Hit Robots 140 | . 69 30 14 5 16 6 Core Hits 68 | . 22 25 7 3 9 2 Critical Kills . | . . . . . . . Critical Parts Destroyed . | . . . . . . . Critical Strikes 4 | . 2 2 . . . . Burn 2 | . 2 . . . . . Blast 2 | . . 2 . . . . Melee Attacks . | . . . . . . . Impact . | . . . . . . . Slashing . | . . . . . . . Piercing . | . . . . . . . Sneak Attacks . | . . . . . . . Combat Hostiles . | . . . . . . . Follow-up Attacks . | . . . . . . . Damage Inflicted 3580 | . 1007 1359 382 199 507 126 Guns 1917 | . 945 202 161 55 428 126 Cannons 357 | . . 172 129 56 . . Explosions 1282 | . 62 961 92 88 79 . Melee . | . . . . . . . Ramming . | . . . . . . . Kinetic 816 | . 258 374 161 . 23 . Thermal 1071 | . 687 32 129 144 79 . Explosive 748 | . 62 647 39 . . . Electromagnetic 945 | . . 306 53 55 405 126 Impact . | . . . . . . . Slashing . | . . . . . . . Piercing . | . . . . . . . Highest Corruption 3 | . . 1 . 3 . . Average Corruption 1 | . . 1 . 2 . . Corruption Purged . | . . . . . . . Corruption Blocked . | . . . . . . . Effects 4 | . . 1 . 3 . . Message Errors 1 | . . . . 1 . . Heat Flow Errors 1 | . . . . 1 . . Parts Fused 1 | . . . . 1 . . Data Loss (minor) 1 | . . 1 . . . . Overload Shots . | . . . . . . . Overflow Damage 25 | . 3 19 3 . . . Projectiles . | . . . . . . . Explosions 25 | . 3 19 3 . . . Melee . | . . . . . . . Knockbacks 3 | . . 3 . . . . Impact . | . . . . . . . Kinetic 3 | . . 3 . . . . Secondary . | . . . . . . . Self-Inflicted Damage 145 | . . 126 11 8 . . Shots 9 | . . 7 1 1 . . Rammed . | . . . . . . . Targets Rammed . | . . . . . . . Kicked . | . . . . . . . Crushed . | . . . . . . . Highest Temperature 482 | . 326 44 482 315 24 8 Average Temperature 91 | . 96 12 206 102 6 7 Received Heat Transfer 1339 | . 132 290 288 45 99 485 Effects 3 | . 2 . 1 . . . Energy Bleed 1 | . . . 1 . . . Interference 2 | . 2 . . . . . Siege Activations . | . . . . . . . Martial Activations . | . . . . . . . Shielding Activations . | . . . . . . . Robots Disrupted . | . . . . . . . Combat Hostiles . | . . . . . . . Robots Corrupted 2 | . . . . . 1 1 Combat Hostiles . | . . . . . . . Parts Fried 5 | . . . . . 4 1 Impact Corruptions . | . . . . . . . Robots Melted . | . . . . . . . Combat Hostiles . | . . . . . . . Parts Melted 1 | . 1 . . . . . Heat Transferred 2660 | . 2101 100 185 174 100 . Parts Sabotaged . | . . . . . . . Parts Stolen . | . . . . . . . Parts Stripped . | . . . . . . . Power Chain Reactions 4 | . . 2 . . 2 . Alert | -11 -10 -9 -8 -7 -6 -6 ------- Run | Yrd Mat Mat Mat Fac Fac Gar Maximum Alert Level 2 | . . . 2 . . 1 Low Security (%) 93 | 100 100 100 68 100 100 79 Level 1 4 | . . . 23 . . 20 Level 2 1 | . . . 7 . . . Level 3 . | . . . . . . . Level 4 . | . . . . . . . Level 5 . | . . . . . . . High Security . | . . . . . . . Max Security . | . . . . . . . Peak Influence 447 | . 100 172 447 137 56 249 Initial 137 | . . 1 42 137 . 28 Average 61 | . 21 95 142 42 15 104 Influence Increases 2095 | . 276 602 601 184 113 319 Destroy 0b10 Robot/C 480 | . 140 240 60 40 . . Destroy 0b10 Robot/NC 105 | . 30 20 5 . 45 5 Destroy Leader 118 | . 36 46 22 10 4 . Successful Hack 112 | . 18 27 34 5 14 14 Disable Machine 150 | . 15 75 15 45 . . Destroy Structure 185 | . 7 119 15 39 5 . Partial Spotted 45 | . 30 . . 15 . . Lose Combat Pursuer 900 | . . 75 450 30 45 300 Influence Decreases 1846 | . 271 505 400 487 73 110 Entered New Map 242 | . . 4 60 166 . 12 Time Decay 814 | . 271 228 175 80 60 . Search Patrol Dispatched 150 | . . . 150 . . . Lost Part 291 | . . 130 15 55 13 78 Lost Ally 20 | . . . . . . 20 Purge Threat 329 | . . 143 . 186 . . Squads Dispatched 18 | . 3 5 4 4 2 . Investigation 10 | . 2 2 1 4 1 . Extermination . | . . . . . . . Reinforcement 8 | . 1 3 3 . 1 . Assault . | . . . . . . . Garrison . | . . . . . . . Intercept . | . . . . . . . Searches Triggered 1 | . . . 1 . . . Construction Impeded 3 | . . 1 1 . 1 . Haulers Reinforced . | . . . . . . . Active Scanning Responses . | . . . . . . . Cargo Convoy Interrupts . | . . . . . . . Stealth | -11 -10 -9 -8 -7 -6 -6 --------- Run | Yrd Mat Mat Mat Fac Fac Gar Distress Signals 9 | . 2 3 4 . . . Communications Jammed . | . . . . . . . Distress Signals . | . . . . . . . Times Spotted 140 | . 14 32 45 17 8 24 Peak Tracking Total 16 | . 3 11 16 11 4 12 Tactical Retreats 21 | . 1 5 7 2 1 5 Traps | -11 -10 -9 -8 -7 -6 -6 ------- Run | Yrd Mat Mat Mat Fac Fac Gar Traps Triggered 8 | . 2 1 . 1 1 3 Indirectly . | . . . . . . . Trap Hack Attempts . | . . . . . . . Triggered . | . . . . . . . Disarmed . | . . . . . . . Reprogrammed . | . . . . . . . Reused . | . . . . . . . Traps Extracted . | . . . . . . . Installed . | . . . . . . . Triggered . | . . . . . . . Machines | -11 -10 -9 -8 -7 -6 -6 ---------- Run | Yrd Mat Mat Mat Fac Fac Gar Machines Disabled 10 | . 1 5 1 3 . . Max in Single Turn 3 | . 1 2 1 3 . . Machines Repaired . | . . . . . . . Machines Dismantled . | . . . . . . . Machines Sabotaged . | . . . . . . . Overloaded Fab Kills . | . . . . . . . Hacking | -11 -10 -9 -8 -7 -6 -6 --------- Run | Yrd Mat Mat Mat Fac Fac Gar Machines Accessed 29 | . 7 6 6 8 1 1 Terminals 22 | . 5 6 4 6 . 1 Fabricators . | . . . . . . . Repair Stations 1 | . 1 . . . . . Recycling Units 4 | . 1 . 1 2 . . Scanalyzers 1 | . . . 1 . . . Garrison Access 1 | . . . . . 1 . Total Hacks 82 | . 17 21 20 20 1 3 Successful 45 | . 10 10 13 10 1 1 Failed 37 | . 7 11 7 10 . 2 Catastrophic 5 | . 1 2 . 2 . . Database Lockouts . | . . . . . . . Manual 2 | . 1 . 1 . . . Terminals 61 | . 11 21 12 14 . 3 Fabricators . | . . . . . . . Repair Stations 5 | . 5 . . . . . Recycling Units 12 | . 1 . 5 6 . . Scanalyzers 3 | . . . 3 . . . Garrison Access 1 | . . . . . 1 . Terminal Hacks 27 | . 5 10 6 5 . 1 Record 2 | . 1 . 1 . . . Robot Analysis 1 | . . 1 . . . . Prototype ID Bank 6 | . . 4 2 . . . Emergency Access Points 3 | . . 1 . 2 . . Unreport Threat 3 | . . 1 . 2 . . Locate Traps 3 | . 1 1 1 . . . Maintenance Status 1 | . 1 . . . . . Recall Investigation 1 | . . . 1 . . . Registered Components 1 | . . 1 . . . . Zone Layout 5 | . 2 1 1 1 . . Patrol Navigation 1 | . . . . . . 1 Fabricator Hacks . | . . . . . . . Repair Station Hacks 4 | . 4 . . . . . Scan Component 2 | . 2 . . . . . Repair 2 | . 2 . . . . . Recycling Unit Hacks 11 | . 1 . 5 5 . . Process 3 | . . . 1 2 . . Report Inventory 1 | . 1 . . . . . Retrieve Matter 7 | . . . 4 3 . . Scanalyzer 2 | . . . 2 . . . Insert Component 1 | . . . 1 . . . Analyze 1 | . . . 1 . . . Garrison Access Hacks 1 | . . . . . 1 . Unlock Access 1 | . . . . . 1 . Unauthorized Hacks . | . . . . . . . Terminals . | . . . . . . . Fabricators . | . . . . . . . Repair Stations . | . . . . . . . Recycling Units . | . . . . . . . Scanalyzers . | . . . . . . . Garrison Access . | . . . . . . . Data Cores Recovered . | . . . . . . . Used . | . . . . . . . Hacking Detections 22 | . 4 6 5 6 1 . Full Trace Events 15 | . 3 6 2 4 . . Feedback Events 1 | . . 1 . . . . Corruption 1 | . . 1 . . . . Feedback Blocked . | . . . . . . . Robot Schematics Acquired . | . . . . . . . Robots Built . | . . . . . . . Authchips . | . . . . . . . Time . | . . . . . . . Total Robot Build Rating . | . . . . . . . Part Schematics Acquired 1 | . . . 1 . . . Parts Built . | . . . . . . . Authchips . | . . . . . . . Time . | . . . . . . . Total Part Build Rating . | . . . . . . . Parts Repaired 2 | . 2 . . . . . Time 52 | . 52 . . . . . Parts Recycled . | . . . . . . . Recycled Matter 124 | . . . 103 21 . . Retrieved Matter 121 | . . . 103 18 . . Retrieved Components . | . . . . . . . Parts Scanalyzed 1 | . . . 1 . . . Part Schematics Acquired 1 | . . . 1 . . . Parts Damaged . | . . . . . . . Bothacking | -11 -10 -9 -8 -7 -6 -6 ------------ Run | Yrd Mat Mat Mat Fac Fac Gar Used RIF Installer . | . . . . . . . Robots Hacked . | . . . . . . . Non-combat . | . . . . . . . Combat . | . . . . . . . Robot Hacks Applied . | . . . . . . . Relay Couplers Released . | . . . . . . . Fabnet Peak Effective % . | . . . . . . . Robots Rewired . | . . . . . . . Allies Hacked . | . . . . . . . Hacks Repelled . | . . . . . . . Allies | -11 -10 -9 -8 -7 -6 -6 -------- Run | Yrd Mat Mat Mat Fac Fac Gar Total Allies . | . . . . . . . Largest Group . | . . . . . . . Highest-Rated Group . | . . . . . . . Highest-Rated Ally . | . . . . . . . Total Orders 3 | . . . . . 2 1 EXPLORE 1 | . . . . . . 1 RETURN 2 | . . . . . 2 . Ally Attacks . | . . . . . . . Total Damage . | . . . . . . . Kills . | . . . . . . . Allies Corrupted . | . . . . . . . Allies Melted . | . . . . . . . Intel | -11 -10 -9 -8 -7 -6 -6 ------- Run | Yrd Mat Mat Mat Fac Fac Gar Active Infowar (turns) 224 | . 223 . . 1 . . Jamming 1 | . . . . 1 . . ECM 223 | . 223 . . . . . Robot Analysis Total 1 | . . 1 . . . . Derelict Logs Recovered . | . . . . . . . Drone Launches 4 | . . . . . 2 2 Drone Recoveries 2 | . . . . . 2 . Exploration | -11 -10 -9 -8 -7 -6 -6 ------------- Run | Yrd Mat Mat Mat Fac Fac Gar Turns Passed 2648 | 88 1019 523 430 236 209 143 Spaces Moved 2987 | 47 584 631 602 577 348 198 Core 194 | 9 2 4 131 . . 48 Treads 96 | 38 58 . . . . . Legs . | . . . . . . . Wheels 3 | . . . 3 . . . Hover . | . . . . . . . Flight 2694 | . 524 627 468 577 348 150 Fastest Speed 26 | 50 37 32 29 26 32 32 Average Speed 40 | 138 50 33 43 29 32 39 Slowest Speed 250 | 160 250 114 200 99 35 100 Overloaded Moves . | . . . . . . . Propulsion Burnouts . | . . . . . . . Robots Hopped 13 | . 1 . 3 . . 9 Potential Cave-ins . | . . . . . . . Cave-ins Triggered . | . . . . . . . Exploration Rate (%) 37 | 5 72 50 73 23 12 30 Regions Visited 6 Branch Regions . Pre-discovered Areas . | . . . . . . . Known Exits Taken 1 | . . . . . 1 . Unknown Exits Taken 5 | 1 1 1 1 1 . . Scrap Searched . | . . . . . . . Spaces Dug 2 | . . 1 1 . . . Terrain Destroyed 185 | . 7 121 14 37 6 . Melee . | . . . . . . . Projectile 11 | . . 2 9 . . . AOE 174 | . 7 119 5 37 6 . Terrain Rammed . | . . . . . . . Walls Destroyed . | . . . . . . . Machines Disabled . | . . . . . . . Actions | -11 -10 -9 -8 -7 -6 -6 --------- Run | Yrd Mat Mat Mat Fac Fac Gar Total 4157 | 70 1191 861 740 631 416 248 Wait 748 | 6 474 137 72 11 24 24 Move 2958 | 46 581 630 595 576 348 182 Hop 11 | . 1 . 3 . . 7 Pick Up 69 | 12 13 9 22 5 7 1 Fast Attach 25 | . 13 5 1 3 3 . Attach 51 | 6 6 11 14 6 4 4 Detach 10 | . . 3 3 2 1 1 Swap 21 | . 9 8 . 1 3 . Drop 44 | . 20 5 12 5 2 . Fire 184 | . 74 53 18 9 24 6 Melee . | . . . . . . . Ram . | . . . . . . . Kick . | . . . . . . . Crush . | . . . . . . . Escape Stasis 34 | . . . . 13 . 21 Rewire 2 | . . . . . . 2 Trap . | . . . . . . . Miscellaneous . | . . . . . . . Route ------- -11/Scrapyard -10/Materials (discovered 4 exits: *Mat x2 / [*Min x2]) -9/Materials -8/Materials (discovered 4 exits: *Fac x2 / [*Sto x2]) -7/Factory -6/Factory -6/Garrison History --------- Turn | Location | Event 2 | -11/Scrapyard | Met Revision 17 13 | -11/Scrapyard | Discovered new exit (range 15) 89 | -11/Scrapyard | Entered Materials 311 | -10/Materials | Build established: Mutant 434 | -10/Materials | Repaired Flight Unit 462 | -10/Materials | Repaired Flight Unit 558 | -10/Materials | Discovered new exit (range 7) 672 | -10/Materials | Discovered new exit (range 9) 925 | -10/Materials | Build established: Scavenger-Mutant 1049 | -10/Materials | Discovered new exit (range 3) 1050 | -10/Materials | Discovered new exit (range 8) 1108 | -10/Materials | Entered another Materials area 1108 | -9/Materials | Evolved 2 slots: Propulsion x1, Utility x1 1299 | -9/Materials | Lost 4 parts (1p1n2u) 1622 | -9/Materials | Core integrity fell below 50% 1626 | -9/Materials | Discovered new exit (range 13) 1631 | -9/Materials | Entered another Materials area 1631 | -8/Materials | Evolved 2 slots: Power x1, Weapon x1 1661 | -8/Materials | Lost 4 parts (1p2n1u) 1811 | -8/Materials | Lost 5 parts (2p1n2w) 1831 | -8/Materials | Discovered new exit (range 7) 1845 | -8/Materials | Build established: Mutant 1926 | -8/Materials | Discovered new exit (range 7) 1947 | -8/Materials | Discovered new exit (range 12) 2015 | -8/Materials | Core integrity fell below 50% 2031 | -8/Materials | Search patrols dispatched 2040 | -8/Materials | Discovered new exit (range 9) 2061 | -8/Materials | Entered Factory 2061 | -7/Factory | Evolved 2 slots: Propulsion x1, Weapon x1 2287 | -7/Factory | Lost 4 parts (1p1n2w) 2292 | -7/Factory | Discovered new exit (range 14) 2297 | -7/Factory | Entered another Factory area 2297 | -6/Factory | Evolved 2 slots: Power x1, Weapon x1 2506 | -6/Factory | Identified exit to Garrison 2506 | -6/Factory | Entered Garrison 2510 | -6/Garrison | Triggered checkpoint 2526 | -6/Garrison | Triggered checkpoint 2559 | -6/Garrison | Lost 4 parts (1p1n1u1w) 2576 | -6/Garrison | Core integrity fell below 50% 2609 | -6/Garrison | Lost 3 parts (1n2u) 2626 | -6/Garrison | Triggered checkpoint 2626 | -6/Garrison | Core integrity fell below 20% 2638 | -6/Garrison | Spotted B-75 Beast 2642 | -6/Garrison | Triggered checkpoint 2646 | -6/Garrison | Triggered checkpoint 2649 | -6/Garrison | Destroyed by B-75 Beast with Magnetic Acceleration Cannon Last Messages --------------- 02578_ Stasis field depleted. 02578_ Imp. VTOL Module destroyed. 02589_ Acquired 105 matter. 02615_ Attempting to rewire C-30 ARC. 02615_ C-30 ARC is unpowered. 02616_ Attempting to rewire C-30 ARC. 02616_ C-30 ARC is unpowered. 02620_ Lightning Gun destroyed. 02621_ C-30 ARC system terminally corrupted. 02621_ Imp. Ion Engine fried. 02622_ Acquired 77 matter. 02626_ Beams of light sweep through the air. An alarm sounds. 02628_ Imp. VTOL Module destroyed. 02642_ Beams of light sweep through the air. An alarm sounds. 02646_ Garrison Door breached. 02646_ Beams of light sweep through the air. An alarm sounds. 02646_ Knocked back. Map ----- +----------------------------------------------------+ | ?????????# #?????# #?????????????????????????? | | ?????????# #?????# #?????????????????????????? | | ##########+++++####### #?????????????????????????? | | #?????????????????????????? | | #?????????????????????????? | | ^ #?????????????????????????? | | ### ##### ###### #?????????????????????????? | | ??# #???# #????# #?????????????????????????? | | ??#####???#####????# #?????????????????????????? | | ???????????????????# #???????? #???????????????? | | ???????????????????# #???????? #???????????????? | | ???????????????????# #??????? #???????????????? | | ???????????????????# ##""""## ##??????????????? | | ???????????????????# #??????????????? | | ???????????????????# #??????????????? | | ???????????????????# #??????????????? | | ???????????????????# ##BB ## #??????????????? | | ?????????????????### ##BB ## #??????????????? | | ?????????????????# "??????????????? | | ?????????????????# "??????????????? | | ?????????????????# % "??????????????? | | ?????????????????# "??????????????? | | ?????????????????### ## ## #??????????????? | | ???????????#########^ ## ## ####???????????? | | ?????????# ^ ????????? | | ?????????# @ ????????? | | ????????????######## % ######?????????? | | ???????????????????###### ######??????????????? | | ????????????????????????# #???????????????????? | | ????????????????????????######???????????????????? | | ?????????????????????????????????????????????????? | | ?????????????????????????????????????????????????? | | ?????????????????????????????????????????????????? | | ?????????????????????????????????????????????????? | | ?????????????????????????????????????????????????? | | ?????????????????????????????????????????????????? | | ?????????????????????????????????????????????????? | | ?????????????????????????????????????????????????? | | ?????????????????????????????????????????????????? | | ?????????????????????????????????????????????????? | | ?????????????????????????????????????????????????? | | ?????????????????????????????????????????????????? | | ?????????????????????????????????????????????????? | | ?????????????????????????????????????????????????? | | ?????????????????????????????????????????????????? | | ?????????????????????????????????????????????????? | | ?????????????????????????????????????????????????? | | ?????????????????????????????????????????????????? | | ?????????????????????????????????????????????????? | | ?????????????????????????????????????????????????? | +----------------------------------------------------+ Best States ------------- Heat Dissipation 37 Energy Generation 14 Energy Capacity 250 Matter Stores 300 Matter Capacity 350 Sight Range 16 Terrain Scan Density 10 ECM Strength 1 Additional Mass Support 9 Weapon Shielding 33 Evasion (%) 64 Melee Accuracy 5 Recoil Reduction 2 Item Schematics ----------------- Imp. VTOL Module | -8/Materials | Scanalyzed Robot Schematics ------------------ None Fabricated ------------ Nothing Repaired ---------- Flight Unit | 15% | -10/Materials Flight Unit | 30% | -10/Materials Alien Tech Used ----------------- None Achievements -------------- GoHome() Challenges ------------ None Game ------ Seed CommWardroneAmplifier Manual? 0 Play Time 01:41:01 Cumulative 19.8 hours Start 2025.08.20 @ 17:05:20 End 2025.08.20 @ 18:58:04 Sessions 1 Manual Loads 0 Difficulty Rogue Special Mode None Game No. 7 Rogue 6 Adventurer 1 Explorer 0 Win Type - Total 0 Types 0/0/0/0/0/0/0/0/0/0 Lore% 6 Gallery% 12 Achievement% 17 Wizard Run 0 Options --------- Layout 1 ASCII 0 Keyboard 0 Movement Mouse Keybinds 0 Fullscreen 1 Font 32/SmallcapsGlow Map View 50x35 Zoom Use 0% Tactical HUD 1 Map Filters NONE Filters NONE Steam 1 RUN: 74e48ff2-1eea-4966-b9ff-e2fde14ba43a